[Event "EYTCC U12 Open 2019"]
[Site "Pardubice"]
[Date "2019.07.15"]
[Round "5.2"]
[White "Tran, David"]
[Black "Makkar, Rajat"]
[Result "1/2-1/2"]
[ECO "C50"]
[WhiteElo "2112"]
[BlackElo "2064"]
[Annotator "NA"]
[PlyCount "79"]
[EventDate "2019.07.11"]
[EventType "swiss"]
[EventCountry "CZE"]
[SourceTitle "playchess.com"]
[Source "ChessBase"]
[SourceQuality "1"]
[WhiteTeam "Hungary"]
[BlackTeam "France"]
[WhiteTeamCountry "HUN"]
[BlackTeamCountry "FRA"]
[TimeControl "40/5400+30:1800+30"]

1. e4 {[%emt 0:00:00]} e5 {[%emt 0:00:00]} 2. Bc4 {[%emt 0:00:00]} Nc6 {[%emt 0:00:50]} 3. Nf3 {[%emt 0:00:36]} Bc5 {[%emt 0:01:20]} 4. d3 {[%emt 0:01:37]} Nf6 {[%emt 0:00:40]} 5. Nc3 {[%emt 0:00:31]} d6 {[%emt 0:01:37]} 6. Na4 {[%emt 0:02:38]} Bb6 {[%emt 0:02:36]} 7. O-O {[%emt 0:01:25]} O-O {[%emt 0:01:27]} 8. h3 {[%emt 0:00:44]} Na5 {[%emt 0:05:22]} 9. Bb3 {[%emt 0:00:32]} h6 {[%emt 0:05:37]} 10. Nxb6 {[%emt 0:01:43]} axb6 {[%emt 0:02:11]} 11. Be3 {[%emt 0:00:07]} Nxb3 {[%emt 0:00:26]} 12. axb3 {[%emt 0:00:05]} Be6 {[%emt 0:00:29]} 13. Qd2 {[%emt 0:01:09]} Qd7 {[%emt 0:02:42]} 14. Kh2 {[%emt 0:08:26]} c5 {[%emt 0:08:34]} 15. c4 {[%emt 0:03:14]} Nh7 {[%emt 0:03:39]} 16. g4 {[%emt 0:05:41]} h5 {[%emt 0:03:00]} 17. Rxa8 {[%emt 0:04:16]} Rxa8 {[%emt 0:00:49]} 18. gxh5 {[%emt 0:00:48]} Bxh3 {[%emt 0:01:17]} 19. Rg1 {[%emt 0:00:12]} Bg4 {[%emt 0:00:41]} 20. Nh4 {[%emt 0:01:00]} Bxh5 {[%emt 0:12:59]} 21. Bh6 {[%emt 0:01:25]} g6 {[%emt 0:01:10]} 22. Nf5 {[%emt 0:02:42]} Ra2 {[%emt 0:02:25]} 23. Qc1 {[%emt 0:18:44]} Qd8 {[%emt 0:02:46]} 24. Kh3 {[%emt 0:05:25]} f6 {[%emt 0:07:07]} 25. Ng7 {[%emt 0:08:34]} Qd7+ {[%emt 0:03:49]} 26. Kh2 {[%emt 0:01:13]} Bg4 {[%emt 0:03:15]} 27. f3 {[%emt 0:02:40]} Bxf3 {[%emt 0:03:57]} 28. Rxg6 {[%emt 0:00:38]} Kf7 {[%emt 0:00:55]} 29. Rg3 {[%emt 0:00:50]} Bg4 {[%emt 0:01:11]} 30. Nf5 {[%emt 0:00:54]} Bxf5 {[%emt 0:01:40]} 31. Rg7+ {[%emt 0:00:24]} Ke8 {[%emt 0:00:34]} 32. Rxd7 {[%emt 0:00:13]} Bxd7 {[%emt 0:00:17]} 33. Qb1 {[%emt 0:01:13]} Ra6 {[%emt 0:01:31]} 34. Qg1 {[%emt 0:02:08]} Ng5 {[%emt 0:00:22]} 35. Bxg5 {[%emt 0:00:36]} fxg5 {[%emt 0:00:22]} 36. Qxg5 {[%emt 0:00:05]} Bc6 {[%emt 0:02:17]} 37. Qf6 {[%emt 0:00:41]} Kd7 {[%emt 0:00:20]} 38. b4 {[%emt 0:03:51]} cxb4 {[%emt 0:00:21]} 39. d4 {[%emt 0:02:07]} Ra2 {[%emt 0:02:27]} 40. Qf7+ {[%emt 0:02:06]} 1/2-1/2

[Event "EYTCC U12 Open 2019"]
[Site "Pardubice"]
[Date "2019.07.15"]
[Round "5.3"]
[White "Mekhane, Adam"]
[Black "Konyves, Almos"]
[Result "0-1"]
[ECO "C85"]
[WhiteElo "2040"]
[BlackElo "2104"]
[Annotator "NA"]
[PlyCount "86"]
[EventDate "2019.07.11"]
[EventType "swiss"]
[EventCountry "CZE"]
[SourceTitle "playchess.com"]
[Source "ChessBase"]
[SourceQuality "1"]
[WhiteTeam "France"]
[BlackTeam "Hungary"]
[WhiteTeamCountry "FRA"]
[BlackTeamCountry "HUN"]
[TimeControl "40/5400+30:1800+30"]

1. e4 {[%emt 0:00:00]} e5 {[%emt 0:00:00]} 2. Nf3 {[%emt 0:00:02]} Nc6 {[%emt 0:00:00]} 3. Bb5 {[%emt 0:00:09]} a6 {[%emt 0:00:00]} 4. Ba4 {[%emt 0:00:10]} Nf6 {[%emt 0:00:00]} 5. O-O {[%emt 0:00:24]} Be7 {[%emt 0:00:04]} 6. Bxc6 {[%emt 0:00:23]} dxc6 {[%emt 0:00:06]} 7. d3 {[%emt 0:00:07]} Bg4 {[%emt 0:13:08]} 8. h3 {[%emt 0:02:42]} Bxf3 {[%emt 0:01:00]} 9. Qxf3 {[%emt 0:00:30]} Qd6 {[%emt 0:04:33]} 10. Nd2 {[%emt 0:06:06]} Qe6 {[%emt 0:17:23]} 11. Nc4 {[%emt 0:05:15]} Nd7 {[%emt 0:05:18]} 12. Qg3 {[%emt 0:06:41]} g5 {[%emt 0:10:39]} 13. Ne3 {[%emt 0:10:40]} O-O-O {[%emt 0:01:27]} 14. Nf5 {[%emt 0:05:35]} Rdg8 {[%emt 0:03:06]} 15. Bd2 {[%emt 0:04:02]} h5 {[%emt 0:01:35]} 16. Bc3 {[%emt 0:04:44]} c5 {[%emt 0:13:19]} 17. a3 {[%emt 0:08:30]} Kb8 {[%emt 0:00:49]} 18. b4 {[%emt 0:05:08]} h4 {[%emt 0:03:06]} 19. Qf3 {[%emt 0:07:32]} g4 {[%emt 0:01:32]} 20. hxg4 {[%emt 0:00:42]} Nf6 {[%emt 0:00:13]} 21. Nxe7 {[%emt 0:04:41]} Qxe7 {[%emt 0:00:06]} 22. Qf5 {[%emt 0:01:06]} Nxg4 {[%emt 0:00:16]} 23. Bd2 {[%emt 0:05:35]} Rg6 {[%emt 0:07:00]} 24. f3 {[%emt 0:05:47]} Nf6 {[%emt 0:00:11]} 25. Be3 {[%emt 0:05:07]} cxb4 {[%emt 0:01:08]} 26. axb4 {[%emt 0:00:46]} Rh5 {[%emt 0:00:39]} 27. Qh3 {[%emt 0:01:57]} Rg3 {[%emt 0:00:07]} 28. Qh2 {[%emt 0:00:17]} Qf8 {[%emt 0:00:56]} 29. b5 {[%emt 0:02:55]} Qg7 {[%emt 0:01:12]} 30. Kf2 {[%emt 0:00:24]} axb5 {[%emt 0:01:43]} 31. Rfd1 {[%emt 0:02:17]} Rh8 {[%emt 0:00:32]} 32. d4 {[%emt 0:01:02]} Rg8 {[%emt 0:00:11]} 33. Rg1 {[%emt 0:02:46]} exd4 {[%emt 0:01:40]} 34. Bd2 {[%emt 0:01:02]} d3 {[%emt 0:05:21]} 35. cxd3 {[%emt 0:00:32]} Ng4+ {[%emt 0:02:50]} 36. fxg4 {[%emt 0:00:08]} Qd4+ {[%emt 0:00:04]} 37. Ke2 {[%emt 0:00:40]} Qxd3+ {[%emt 0:00:03]} 38. Ke1 {[%emt 0:01:50]} R8xg4 {[%emt 0:01:40]} 39. Rc1 {[%emt 0:00:41]} Rxe4+ {[%emt 0:00:35]} 40. Kd1 {[%emt 0:00:27]} Qe2+ {[%emt 0:00:13]} 41. Kc2 {[%emt 0:30:02]} Rc4+ {[%emt 0:30:04]} 42. Kb1 {[%emt 0:00:00]} Qd3+ {[%emt 0:00:00]} 43. Ka1 {[%emt 0:00:00]} Qa3+ {[%emt 0:00:00]} 0-1

[Event "EYTCC U12 Open 2019"]
[Site "Pardubice"]
[Date "2019.07.15"]
[Round "5.4"]
[White "Gaal, Zsoka"]
[Black "Bat, Bilguun"]
[Result "1/2-1/2"]
[ECO "A06"]
[WhiteElo "2047"]
[BlackElo "2093"]
[Annotator "NA"]
[PlyCount "81"]
[EventDate "2019.07.11"]
[EventType "swiss"]
[EventCountry "CZE"]
[SourceTitle "playchess.com"]
[Source "ChessBase"]
[SourceQuality "1"]
[WhiteTeam "Hungary"]
[BlackTeam "France"]
[WhiteTeamCountry "HUN"]
[BlackTeamCountry "FRA"]
[TimeControl "40/5400+30:1800+30"]

1. Nf3 {[%emt 0:00:00]} d5 {[%emt 0:00:00]} 2. g3 {[%emt 0:00:00]} Nc6 {[%emt 0:00:00]} 3. d4 {[%emt 0:00:00]} Bf5 {[%emt 0:00:05]} 4. Bg2 {[%emt 0:00:08]} Nb4 {[%emt 0:00:11]} 5. Na3 {[%emt 0:00:11]} e6 {[%emt 0:00:13]} 6. c3 {[%emt 0:00:49]} Nc6 {[%emt 0:00:09]} 7. Nc2 {[%emt 0:01:38]} Be7 {[%emt 0:01:42]} 8. Bf4 {[%emt 0:02:35]} Nf6 {[%emt 0:02:56]} 9. O-O {[%emt 0:05:37]} O-O {[%emt 0:00:51]} 10. Ne5 {[%emt 0:07:28]} Nxe5 {[%emt 0:10:34]} 11. Bxe5 {[%emt 0:02:45]} c5 {[%emt 0:06:32]} 12. dxc5 {[%emt 0:03:27]} Bxc5 {[%emt 0:00:34]} 13. Bd4 {[%emt 0:06:55]} Bxc2 {[%emt 0:09:46]} 14. Qxc2 {[%emt 0:00:27]} Bxd4 {[%emt 0:00:07]} 15. cxd4 {[%emt 0:00:15]} Qb6 {[%emt 0:00:07]} 16. Qd2 {[%emt 0:03:22]} Ne8 {[%emt 0:08:08]} 17. Rac1 {[%emt 0:01:57]} Nd6 {[%emt 0:00:11]} 18. b3 {[%emt 0:00:14]} Rac8 {[%emt 0:01:45]} 19. e3 {[%emt 0:00:24]} g6 {[%emt 0:01:10]} 20. Bf3 {[%emt 0:02:13]} Rfd8 {[%emt 0:09:41]} 21. Kg2 {[%emt 0:02:19]} Kg7 {[%emt 0:01:37]} 22. Rfd1 {[%emt 0:00:34]} a6 {[%emt 0:01:33]} 23. Qe1 {[%emt 0:01:20]} a5 {[%emt 0:03:47]} 24. Rxc8 {[%emt 0:14:14]} Rxc8 {[%emt 0:01:07]} 25. Rc1 {[%emt 0:00:40]} Qb4 {[%emt 0:09:07]} 26. Qxb4 {[%emt 0:12:06]} axb4 {[%emt 0:00:13]} 27. Rxc8 {[%emt 0:00:10]} Nxc8 {[%emt 0:00:05]} 28. Be2 {[%emt 0:00:14]} Kf6 {[%emt 0:03:43]} 29. Bd3 {[%emt 0:05:08]} e5 {[%emt 0:09:36]} 30. g4 {[%emt 0:09:09]} h6 {[%emt 0:02:59]} 31. h4 {[%emt 0:09:59]} Na7 {[%emt 0:08:23]} 32. g5+ {[%emt 0:03:39]} hxg5 {[%emt 0:00:11]} 33. hxg5+ {[%emt 0:00:18]} Ke6 {[%emt 0:00:12]} 34. dxe5 {[%emt 0:00:24]} Kxe5 {[%emt 0:00:10]} 35. f4+ {[%emt 0:00:41]} Ke6 {[%emt 0:00:34]} 36. e4 {[%emt 0:02:15]} dxe4 {[%emt 0:00:28]} 37. Bxe4 {[%emt 0:00:08]} b6 {[%emt 0:03:39]} 38. Bd3 {[%emt 0:01:33]} Nc8 {[%emt 0:04:17]} 39. Bc4+ {[%emt 0:01:04]} Ke7 {[%emt 0:02:13]} 40. Kf3 {[%emt 0:01:06]} Nd6 {[%emt 0:00:49]} 41. Ke3 {[%emt 0:06:03]} 1/2-1/2

[Event "EYTCC U12 Open 2019"]
[Site "Pardubice"]
[Date "2019.07.15"]
[Round "5.5"]
[White "Bakiev, Diyor"]
[Black "Fiszer, Bartosz"]
[Result "0-1"]
[ECO "B67"]
[WhiteElo "2121"]
[BlackElo "2124"]
[Annotator "ChessBase"]
[PlyCount "102"]
[EventDate "2019.07.11"]
[EventType "swiss"]
[EventCountry "CZE"]
[SourceTitle "playchess.com"]
[Source "ChessBase"]
[SourceQuality "1"]
[WhiteTeam "Germany"]
[BlackTeam "Poland"]
[WhiteTeamCountry "GER"]
[BlackTeamCountry "POL"]
[TimeControl "40/5400+30:1800+30"]

1. e4 {[%emt 0:00:00]} c5 {[%emt 0:00:00]} 2. Nf3 {[%emt 0:00:00]} Nc6 {[%emt 0:00:00]} 3. d4 {[%emt 0:00:08]} cxd4 {[%emt 0:00:00]} 4. Nxd4 {[%emt 0:00:07]} Nf6 {[%emt 0:00:00]} 5. Nc3 {[%emt 0:00:08]} d6 {[%emt 0:00:14]} 6. Bg5 {[%emt 0:00:45]} e6 {[%emt 0:00:12]} 7. Qd2 {[%emt 0:00:31]} a6 {[%emt 0:00:10]} 8. O-O-O {[%emt 0:00:49]} Bd7 {[%emt 0:00:06]} 9. f3 {[%emt 0:00:30]} Be7 {[%emt 0:00:30]} 10. h4 {[%emt 0:01:27]} h6 {[%emt 0:00:30]} 11. Be3 {[%emt 0:12:23]} h5 {[%emt 0:00:13]} 12. Qf2 {[%emt 0:08:48]} Ne5 {[%emt 0:03:24]} 13. Qg3 {[%emt 0:06:32]} Qc7 {[%emt 0:02:45]} 14. Bg5 {[%emt 0:07:34]} b5 {[%emt 0:01:18]} 15. f4 {[%emt 0:08:43]} Neg4 {[%emt 0:00:38]} 16. Qf3 {[%emt 0:03:34]} Rc8 {[%emt 0:03:05]} 17. Rd2 {[%emt 0:09:48]} b4 {[%emt 0:07:23]} 18. Nce2 {[%emt 0:00:50]} O-O {[%emt 0:00:38]} 19. Ng3 {[%emt 0:01:51]} g6 {[%emt 0:04:14]} 20. Kb1 {[%emt 0:04:32]} e5 {[%emt 0:06:00]} 21. Nde2 {[%emt 0:06:15]} a5 {[%emt 0:05:46]} 22. f5 {[%emt 0:03:17]} a4 {[%emt 0:00:13]} 23. Bxf6 {[%emt 0:02:16]} Bxf6 {[%emt 0:01:46]} 24. Nxh5 {[%emt 0:07:02]} gxh5 {[%emt 0:01:59]} 25. Ng3 {[%emt 0:01:16]} Kh8 {[%emt 0:00:45]} 26. Nxh5 {[%emt 0:00:20]} Rg8 {[%emt 0:00:06]} 27. Be2 {[%emt 0:03:27]} Qb6 {[%emt 0:12:38]} 28. Rhd1 {[%emt 0:03:53]} Be7 {[%emt 0:03:25]} 29. f6 {[%emt 0:02:15]} Bf8 {[%emt 0:00:16]} 30. Ng7 {[%emt 0:01:28]} Qe3 {[%emt 0:00:58]} 31. Nf5 {[%emt 0:02:25]} Qxf3 {[%emt 0:00:11]} 32. Bxf3 {[%emt 0:00:20]} Bxf5 {[%emt 0:00:06]} 33. exf5 {[%emt 0:00:20]} Nxf6 {[%emt 0:00:13]} 34. Re1 {[%emt 0:01:20]} e4 {[%emt 0:02:10]} 35. Bxe4 {[%emt 0:00:37]} Re8 {[%emt 0:00:03]} 36. Rde2 {[%emt 0:00:08]} Nxe4 {[%emt 0:00:11]} 37. Rxe4 {[%emt 0:00:03]} Rxe4 {[%emt 0:00:05]} 38. Rxe4 {[%emt 0:00:01]} Rxg2 {[%emt 0:00:02]} 39. Kc1 {[%emt 0:01:34]} Bh6+ {[%emt 0:00:48]} 40. Kd1 {[%emt 0:00:06]} Rd2+ {[%emt 0:00:15]} 41. Ke1 {[%emt 0:30:08]} Rxc2 {[%emt 0:30:30]} 42. f6 {[%emt 0:02:07]} Rxb2 {[%emt 0:00:14]} 43. h5 {[%emt 0:00:25]} Rxa2 {[%emt 0:00:06]} 44. Re8+ {[%emt 0:00:19]} Kh7 {[%emt 0:00:06]} 45. Re7 {[%emt 0:00:13]} Kg8 {[%emt 0:00:04]} 46. Re8+ {[%emt 0:00:08]} Bf8 {[%emt 0:00:02]} 47. h6 {[%emt 0:00:36]} Rh2 {[%emt 0:00:09]} 48. Re7 {[%emt 0:00:30]} a3 {[%emt 0:00:12]} 49. Ra7 {[%emt 0:00:09]} a2 {[%emt 0:00:06]} 50. h7+ {[%emt 0:00:03]} Rxh7 {[%emt 0:00:08]} 51. Kd2 {[%emt 0:00:18]} Rh1 {[%emt 0:00:08]} 0-1

[Event "EYTCC U12 Open 2019"]
[Site "Pardubice"]
[Date "2019.07.15"]
[Round "5.6"]
[White "Seemann, Jakub"]
[Black "Costa, Leonardo"]
[Result "1/2-1/2"]
[ECO "C78"]
[WhiteElo "2017"]
[BlackElo "2002"]
[Annotator "NA"]
[PlyCount "100"]
[EventDate "2019.07.11"]
[EventType "swiss"]
[EventCountry "CZE"]
[SourceTitle "playchess.com"]
[Source "ChessBase"]
[SourceQuality "1"]
[WhiteTeam "Poland"]
[BlackTeam "Germany"]
[WhiteTeamCountry "POL"]
[BlackTeamCountry "GER"]
[TimeControl "40/5400+30:1800+30"]

1. e4 {[%emt 0:00:00]} e5 {[%emt 0:00:00]} 2. Nf3 {[%emt 0:00:00]} Nc6 {[%emt 0:00:00]} 3. Bb5 {[%emt 0:00:09]} a6 {[%emt 0:00:00]} 4. Ba4 {[%emt 0:00:07]} Nf6 {[%emt 0:00:00]} 5. O-O {[%emt 0:00:10]} b5 {[%emt 0:00:20]} 6. Bb3 {[%emt 0:00:05]} Bc5 {[%emt 0:00:23]} 7. a4 {[%emt 0:00:08]} Rb8 {[%emt 0:05:24]} 8. c3 {[%emt 0:00:34]} d6 {[%emt 0:00:56]} 9. d4 {[%emt 0:00:09]} Bb6 {[%emt 0:01:59]} 10. a5 {[%emt 0:00:13]} Ba7 {[%emt 0:24:07]} 11. Be3 {[%emt 0:00:19]} Ng4 {[%emt 0:08:42]} 12. Bg5 {[%emt 0:01:46]} Qd7 {[%emt 0:01:22]} 13. h3 {[%emt 0:00:51]} Nf6 {[%emt 0:00:49]} 14. dxe5 {[%emt 0:02:12]} Nxe5 {[%emt 0:07:40]} 15. Bxf6 {[%emt 0:05:18]} gxf6 {[%emt 0:01:56]} 16. Nh4 {[%emt 0:00:34]} Qe7 {[%emt 0:11:30]} 17. Qh5 {[%emt 0:02:12]} Qf8 {[%emt 0:01:02]} 18. Kh1 {[%emt 0:02:19]} Qg7 {[%emt 0:02:48]} 19. f4 {[%emt 0:02:23]} Nc6 {[%emt 0:03:08]} 20. Nf5 {[%emt 0:05:35]} Bxf5 {[%emt 0:00:39]} 21. exf5 {[%emt 0:00:42]} O-O {[%emt 0:01:29]} 22. Qf3 {[%emt 0:02:23]} Ne7 {[%emt 0:01:44]} 23. g4 {[%emt 0:01:55]} c6 {[%emt 0:02:30]} 24. Nd2 {[%emt 0:00:43]} d5 {[%emt 0:01:25]} 25. Rae1 {[%emt 0:00:59]} Rbe8 {[%emt 0:00:59]} 26. Re2 {[%emt 0:00:43]} Nc8 {[%emt 0:06:14]} 27. Rfe1 {[%emt 0:01:12]} Nd6 {[%emt 0:03:59]} 28. Re7 {[%emt 0:04:52]} Bc5 {[%emt 0:00:55]} 29. Rxe8 {[%emt 0:14:16]} Rxe8 {[%emt 0:00:06]} 30. Rxe8+ {[%emt 0:00:26]} Nxe8 {[%emt 0:00:07]} 31. Qe2 {[%emt 0:00:39]} Qf8 {[%emt 0:05:08]} 32. Kg2 {[%emt 0:03:36]} Nd6 {[%emt 0:04:16]} 33. Kf3 {[%emt 0:02:53]} Qh6 {[%emt 0:01:08]} 34. Qg2 {[%emt 0:00:47]} Qh4 {[%emt 0:00:35]} 35. Qf1 {[%emt 0:02:40]} h5 {[%emt 0:01:31]} 36. Bd1 {[%emt 0:01:35]} hxg4+ {[%emt 0:01:07]} 37. hxg4 {[%emt 0:00:04]} Qh2 {[%emt 0:00:06]} 38. Nb3 {[%emt 0:02:29]} Ba7 {[%emt 0:01:26]} 39. Be2 {[%emt 0:02:18]} Ne4 {[%emt 0:00:19]} 40. Qg2 {[%emt 0:00:46]} Qh4 {[%emt 0:01:03]} 41. Bd3 {[%emt 0:30:51]} Qe1 {[%emt 0:31:06]} 42. Be2 {[%emt 0:00:11]} Nxc3 {[%emt 0:00:00]} 43. g5 {[%emt 0:00:00]} Qxe2+ {[%emt 0:00:00]} 44. Qxe2 {[%emt 0:00:00]} Nxe2 {[%emt 0:00:00]} 45. Kxe2 {[%emt 0:00:00]} Kg7 {[%emt 0:00:00]} 46. Nc1 {[%emt 0:00:00]} Bc5 {[%emt 0:00:00]} 47. Nd3 {[%emt 0:00:00]} Be7 {[%emt 0:00:00]} 48. b4 {[%emt 0:00:00]} Bd6 {[%emt 0:00:00]} 49. Ke3 {[%emt 0:00:00]} fxg5 {[%emt 0:00:00]} 50. fxg5 {[%emt 0:00:00]} Bh2 {[%emt 0:00:00]} 1/2-1/2

[Event "EYTCC U12 Open 2019"]
[Site "Pardubice"]
[Date "2019.07.15"]
[Round "5.7"]
[White "Deuer, Marius"]
[Black "Meers, Hubert"]
[Result "1-0"]
[ECO "B50"]
[WhiteElo "1881"]
[BlackElo "2141"]
[Annotator "NA"]
[PlyCount "107"]
[EventDate "2019.07.11"]
[EventType "swiss"]
[EventCountry "CZE"]
[SourceTitle "playchess.com"]
[Source "ChessBase"]
[SourceQuality "1"]
[WhiteTeam "Germany"]
[BlackTeam "Poland"]
[WhiteTeamCountry "GER"]
[BlackTeamCountry "POL"]
[TimeControl "40/5400+30:1800+30"]

1. e4 {[%emt 0:00:00]} c5 {[%emt 0:00:00]} 2. Nf3 {[%emt 0:00:00]} d6 {[%emt 0:00:00]} 3. d4 {[%emt 0:00:00]} Nf6 {[%emt 0:00:06]} 4. Nc3 {[%emt 0:00:00]} cxd4 {[%emt 0:00:05]} 5. Qxd4 {[%emt 0:00:00]} a6 {[%emt 0:00:18]} 6. e5 {[%emt 0:00:15]} Nc6 {[%emt 0:01:32]} 7. Qa4 {[%emt 0:00:08]} Nd7 {[%emt 0:10:29]} 8. exd6 {[%emt 0:00:20]} Nc5 {[%emt 0:05:13]} 9. Qh4 Bf5 {[%emt 0:08:40]} 10. Be3 {[%emt 0:04:34]} exd6 {[%emt 0:02:49]} 11. Qxd8+ {[%emt 0:00:39]} Rxd8 {[%emt 0:00:07]} 12. O-O-O {[%emt 0:01:28]} g6 {[%emt 0:02:27]} 13. Nd5 {[%emt 0:06:17]} Bg7 {[%emt 0:02:07]} 14. Bg5 {[%emt 0:03:25]} Rb8 {[%emt 0:02:58]} 15. Nf6+ {[%emt 0:07:10]} Bxf6 {[%emt 0:00:15]} 16. Bxf6 {[%emt 0:00:09]} O-O {[%emt 0:00:08]} 17. Nd4 {[%emt 0:10:41]} Nxd4 {[%emt 0:01:03]} 18. Rxd4 {[%emt 0:04:44]} Rbc8 {[%emt 0:02:09]} 19. c3 {[%emt 0:06:46]} Rfe8 {[%emt 0:01:01]} 20. f3 {[%emt 0:03:29]} d5 {[%emt 0:14:47]} 21. g4 {[%emt 0:08:18]} Bd7 {[%emt 0:02:44]} 22. h4 {[%emt 0:11:28]} Ba4 {[%emt 0:06:47]} 23. Bh3 {[%emt 0:03:11]} Re3 {[%emt 0:04:20]} 24. Rxd5 {[%emt 0:01:44]} Rxf3 {[%emt 0:02:21]} 25. g5 {[%emt 0:01:46]} Ne6 {[%emt 0:00:55]} 26. Re5 {[%emt 0:05:06]} Rc6 {[%emt 0:07:04]} 27. Bg2 {[%emt 0:03:06]} Rf2 {[%emt 0:05:37]} 28. Bxc6 {[%emt 0:02:26]} Bxc6 {[%emt 0:00:05]} 29. Rh3 {[%emt 0:02:13]} Rf1+ {[%emt 0:06:31]} 30. Kc2 {[%emt 0:01:19]} Kf8 {[%emt 0:01:44]} 31. Rh2 {[%emt 0:03:41]} h5 {[%emt 0:02:16]} 32. Ree2 {[%emt 0:02:48]} Ra1 {[%emt 0:01:39]} 33. Kb3 {[%emt 0:05:24]} a5 {[%emt 0:03:51]} 34. Rd2 {[%emt 0:01:24]} Bb5 {[%emt 0:03:23]} 35. Ka3 {[%emt 0:01:17]} Bc6 {[%emt 0:01:16]} 36. b3 {[%emt 0:00:47]} Rf1 {[%emt 0:00:12]} 37. c4 {[%emt 0:00:51]} a4 {[%emt 0:00:31]} 38. Kb2 {[%emt 0:01:11]} Rf3 {[%emt 0:00:27]} 39. Be5 {[%emt 0:00:22]} Nf4 {[%emt 0:00:45]} 40. Rd8+ {[%emt 0:00:50]} Ke7 {[%emt 0:00:27]} 41. Bf6+ {[%emt 0:30:20]} Ke6 {[%emt 0:30:04]} 42. Rhd2 {[%emt 0:00:00]} Rh3 {[%emt 0:00:00]} 43. R2d6+ {[%emt 0:00:00]} Kf5 {[%emt 0:00:00]} 44. Rf8 {[%emt 0:00:00]} Nd3+ {[%emt 0:00:00]} 45. Ka3 {[%emt 0:00:00]} axb3 {[%emt 0:00:00]} 46. axb3 {[%emt 0:00:00]} Nc1 {[%emt 0:00:00]} 47. Kb2 {[%emt 0:00:00]} Nd3+ {[%emt 0:00:00]} 48. Ka2 {[%emt 0:00:00]} Nc1+ {[%emt 0:00:00]} 49. Kb1 {[%emt 0:00:00]} Nxb3 {[%emt 0:00:00]} 50. Rxf7 {[%emt 0:00:00]} Rh2 {[%emt 0:00:00]} 51. Bb2+ {[%emt 0:00:00]} Kg4 {[%emt 0:00:00]} 52. Re7 {[%emt 0:00:00]} Kxh4 {[%emt 0:00:00]} 53. Rxg6 {[%emt 0:00:00]} Be4+ {[%emt 0:00:00]} 54. Rxe4+ {[%emt 0:00:00]} 1-0

[Event "EYTCC U12 Open 2019"]
[Site "Pardubice"]
[Date "2019.07.15"]
[Round "5.8"]
[White "Klimkowski, Jan"]
[Black "Hagner, Bennet"]
[Result "1-0"]
[ECO "C91"]
[WhiteElo "1985"]
[BlackElo "1831"]
[Annotator "NA"]
[PlyCount "73"]
[EventDate "2019.07.11"]
[EventType "swiss"]
[EventCountry "CZE"]
[SourceTitle "playchess.com"]
[Source "ChessBase"]
[SourceQuality "1"]
[WhiteTeam "Poland"]
[BlackTeam "Germany"]
[WhiteTeamCountry "POL"]
[BlackTeamCountry "GER"]
[TimeControl "40/5400+30:1800+30"]

1. e4 {[%emt 0:00:00]} e5 {[%emt 0:00:00]} 2. Nf3 {[%emt 0:00:00]} Nc6 {[%emt 0:00:00]} 3. Bb5 {[%emt 0:00:03]} a6 {[%emt 0:00:00]} 4. Ba4 {[%emt 0:00:11]} Nf6 {[%emt 0:00:00]} 5. O-O {[%emt 0:00:32]} Be7 {[%emt 0:00:00]} 6. Re1 {[%emt 0:00:57]} b5 {[%emt 0:00:09]} 7. Bb3 {[%emt 0:00:09]} d6 {[%emt 0:00:04]} 8. c3 {[%emt 0:01:29]} O-O {[%emt 0:00:10]} 9. d4 {[%emt 0:02:53]} Bg4 {[%emt 0:00:12]} 10. d5 {[%emt 0:03:45]} Na5 {[%emt 0:03:48]} 11. Bc2 {[%emt 0:00:16]} c6 {[%emt 0:02:32]} 12. dxc6 {[%emt 0:01:13]} Qc7 13. Nbd2 {[%emt 0:03:05]} Qxc6 {[%emt 0:05:39]} 14. h3 {[%emt 0:02:08]} Be6 {[%emt 0:07:57]} 15. Nf1 {[%emt 0:01:48]} Nc4 {[%emt 0:01:51]} 16. b3 {[%emt 0:06:50]} Nb6 {[%emt 0:00:44]} 17. Bb2 {[%emt 0:00:20]} Rac8 {[%emt 0:01:50]} 18. Ng3 {[%emt 0:03:02]} Rfd8 {[%emt 0:02:56]} 19. Ng5 {[%emt 0:07:53]} Bd7 {[%emt 0:07:16]} 20. Rc1 {[%emt 0:05:19]} Ne8 {[%emt 0:02:07]} 21. Qh5 {[%emt 0:03:11]} Bxg5 {[%emt 0:00:24]} 22. Qxg5 {[%emt 0:00:11]} f6 {[%emt 0:01:01]} 23. Qh4 {[%emt 0:03:05]} g6 {[%emt 0:06:19]} 24. f4 {[%emt 0:03:20]} Kg7 {[%emt 0:03:35]} 25. Re3 {[%emt 0:06:18]} Qc5 {[%emt 0:03:07]} 26. Rce1 {[%emt 0:01:48]} d5 {[%emt 0:07:32]} 27. fxe5 {[%emt 0:05:30]} d4 {[%emt 0:01:39]} 28. b4 {[%emt 0:00:47]} Qxe5 {[%emt 0:02:03]} 29. cxd4 {[%emt 0:01:22]} Qd6 {[%emt 0:01:26]} 30. e5 {[%emt 0:03:25]} fxe5 {[%emt 0:01:46]} 31. Rxe5 {[%emt 0:04:54]} Nd5 {[%emt 0:04:25]} 32. Bb3 {[%emt 0:01:33]} Nef6 {[%emt 0:00:54]} 33. Ne4 {[%emt 0:02:18]} Nxe4 34. R1xe4 {[%emt 0:01:21]} Nf6 {[%emt 0:05:35]} 35. Re7+ {[%emt 0:01:46]} Kh8 {[%emt 0:00:17]} 36. R4e6 {[%emt 0:01:59]} Bxe6 {[%emt 0:01:06]} 37. Qxf6+ {[%emt 0:00:10]} 1-0